[Event "Orbis-2 IM 2019"]
[Site "Paracin"]
[Date "2019.07.13"]
[Round "1.5"]
[White "Zlatanovic, Boroljub"]
[Black "Chen, Peng"]
[Result "1/2-1/2"]
[ECO "A19"]
[WhiteElo "2371"]
[BlackElo "2328"]
[Annotator "NA"]
[PlyCount "60"]
[EventDate "2019.07.13"]
[EventType "tourn"]
[EventCountry "SRB"]
[SourceTitle "playchess.com"]
[Source "ChessBase"]
[SourceQuality "1"]
[TimeControl "40/5400+30:1800+30"]

1. c4 {[%emt 0:00:00]} Nf6 {[%emt 0:00:01]} 2. Nc3 {[%emt 0:00:26]} e6 {[%emt 0:02:01]} 3. e4 {[%emt 0:00:49]} c5 {[%emt 0:00:03]} 4. f4 {[%emt 0:03:06]} Nc6 {[%emt 0:00:35]} 5. Nf3 {[%emt 0:01:11]} d5 {[%emt 0:04:08]} 6. e5 {[%emt 0:01:53]} d4 {[%emt 0:08:05]} 7. exf6 {[%emt 0:02:47]} dxc3 {[%emt 0:00:03]} 8. fxg7 {[%emt 0:00:18]} cxd2+ {[%emt 0:00:06]} 9. Qxd2 {[%emt 0:00:11]} Bxg7 {[%emt 0:01:03]} 10. Qxd8+ {[%emt 0:01:31]} Nxd8 {[%emt 0:02:31]} 11. Ne5 {[%emt 0:05:46]} b6 {[%emt 0:06:29]} 12. Be2 {[%emt 0:05:18]} Bb7 {[%emt 0:03:44]} 13. O-O {[%emt 0:01:26]} Rg8 {[%emt 0:01:42]} 14. Rf2 {[%emt 0:04:55]} f6 {[%emt 0:02:16]} 15. Bh5+ {[%emt 0:05:43]} Ke7 {[%emt 0:01:39]} 16. Nf3 {[%emt 0:00:53]} f5 {[%emt 0:06:13]} 17. Be3 {[%emt 0:01:18]} Nc6 {[%emt 0:03:17]} 18. Re2 {[%emt 0:01:47]} Nd4 {[%emt 0:17:31]} 19. Bxd4 {[%emt 0:14:52]} Bxd4+ {[%emt 0:08:08]} 20. Kf1 {[%emt 0:06:03]} h6 {[%emt 0:11:38]} 21. Nxd4 {[%emt 0:05:11]} cxd4 {[%emt 0:00:02]} 22. Rd1 {[%emt 0:04:30]} Rad8 {[%emt 0:00:20]} 23. Red2 {[%emt 0:05:44]} d3 {[%emt 0:01:07]} 24. Bf3 {[%emt 0:05:30]} Bxf3 {[%emt 0:01:21]} 25. gxf3 {[%emt 0:00:05]} Rd4 {[%emt 0:00:02]} 26. Rxd3 {[%emt 0:03:19]} Rxc4 {[%emt 0:01:18]} 27. Rd7+ {[%emt 0:02:16]} Kf6 {[%emt 0:00:02]} 28. Rh7 {[%emt 0:00:56]} Rg6 {[%emt 0:00:20]} 29. Rxa7 {[%emt 0:01:30]} Rxf4 {[%emt 0:00:05]} 30. Ra3 {[%emt 0:01:45]} Ke5 1/2-1/2

[Event "Orbis-2 IM 2019"]
[Site "Paracin"]
[Date "2019.07.14"]
[Round "2.1"]
[White "Raghavi, N.."]
[Black "Chen, Peng"]
[Result "0-1"]
[ECO "B50"]
[WhiteElo "2290"]
[BlackElo "2328"]
[Annotator "ChessBase"]
[PlyCount "58"]
[EventDate "2019.07.13"]
[EventType "tourn"]
[EventCountry "SRB"]
[SourceTitle "playchess.com"]
[Source "ChessBase"]
[SourceQuality "1"]
[TimeControl "40/5400+30:1800+30"]

1. e4 {[%emt 0:00:00]} c5 {[%emt 0:00:00]} 2. Nf3 {[%emt 0:00:00]} d6 {[%emt 0:00:00]} 3. Nc3 {[%emt 0:00:26]} Nf6 {[%emt 0:00:04]} 4. e5 {[%emt 0:00:35]} dxe5 {[%emt 0:00:58]} 5. Nxe5 {[%emt 0:00:13]} a6 {[%emt 0:00:29]} 6. g3 {[%emt 0:01:27]} Qc7 {[%emt 0:01:14]} 7. d4 {[%emt 0:01:08]} cxd4 {[%emt 0:00:31]} 8. Qxd4 {[%emt 0:00:08]} Nc6 {[%emt 0:00:27]} 9. Nxc6 {[%emt 0:01:08]} Qxc6 {[%emt 0:00:30]} 10. Bg5 {[%emt 0:02:01]} e5 {[%emt 0:16:05]} 11. Qxe5+ {[%emt 0:02:08]} Be6 {[%emt 0:00:01]} 12. O-O-O {[%emt 0:03:06]} Be7 {[%emt 0:00:53]} 13. Bd3 {[%emt 0:15:18]} Rc8 {[%emt 0:09:03]} 14. Kb1 {[%emt 0:16:24]} h6 {[%emt 0:04:25]} 15. Bc1 {[%emt 0:03:57]} O-O {[%emt 0:00:51]} 16. Bf5 {[%emt 0:10:14]} Bb4 {[%emt 0:12:07]} 17. Bxe6 {[%emt 0:20:11]} fxe6 {[%emt 0:09:05]} 18. f4 {[%emt 0:06:12]} Bxc3 {[%emt 0:08:08]} 19. Qxc3 {[%emt 0:01:34]} Qxc3 {[%emt 0:01:04]} 20. bxc3 {[%emt 0:00:05]} Ne4 {[%emt 0:00:47]} 21. Rd4 {[%emt 0:02:45]} Nxc3+ {[%emt 0:00:19]} 22. Kb2 {[%emt 0:00:12]} Rf5 {[%emt 0:00:57]} 23. Rb4 {[%emt 0:04:28]} b5 {[%emt 0:02:55]} 24. Be3 {[%emt 0:01:32]} a5 {[%emt 0:02:14]} 25. Rb3 {[%emt 0:01:55]} b4 {[%emt 0:01:14]} 26. a3 {[%emt 0:01:35]} Rd5 {[%emt 0:02:02]} 27. axb4 {[%emt 0:00:40]} axb4 {[%emt 0:00:08]} 28. Re1 {[%emt 0:01:14]} Rc4 {[%emt 0:02:14]} 29. Bb6 {[%emt 0:00:54]} Na4+ {[%emt 0:00:08]} 0-1

[Event "Orbis-2 IM 2019"]
[Site "Paracin"]
[Date "2019.07.14"]
[Round "2.2"]
[White "Dedebas, Emre Emin"]
[Black "Zlatanovic, Boroljub"]
[Result "1/2-1/2"]
[ECO "A40"]
[WhiteElo "2301"]
[BlackElo "2371"]
[Annotator "ChessBase"]
[PlyCount "78"]
[EventDate "2019.07.13"]
[EventType "tourn"]
[EventCountry "SRB"]
[SourceTitle "playchess.com"]
[Source "ChessBase"]
[SourceQuality "1"]
[TimeControl "40/5400+30:1800+30"]

1. d4 {[%emt 0:00:00]} g6 {[%emt 0:00:00]} 2. e4 {[%emt 0:00:00]} c6 {[%emt 0:00:00]} 3. Nc3 {[%emt 0:00:20]} d6 {[%emt 0:01:01]} 4. Nf3 {[%emt 0:00:19]} Bg4 {[%emt 0:00:29]} 5. Be2 {[%emt 0:01:16]} Bg7 {[%emt 0:00:17]} 6. O-O {[%emt 0:00:36]} e6 {[%emt 0:04:47]} 7. h3 {[%emt 0:06:59]} Bxf3 {[%emt 0:00:07]} 8. Bxf3 {[%emt 0:00:00]} Ne7 {[%emt 0:00:52]} 9. Ne2 {[%emt 0:08:32]} O-O {[%emt 0:00:13]} 10. c3 {[%emt 0:00:18]} Nd7 {[%emt 0:00:26]} 11. Ng3 {[%emt 0:01:52]} e5 {[%emt 0:04:10]} 12. dxe5 {[%emt 0:12:44]} dxe5 {[%emt 0:01:29]} 13. Be2 {[%emt 0:01:19]} Nc8 {[%emt 0:00:13]} 14. Bc4 {[%emt 0:02:00]} Ncb6 {[%emt 0:01:51]} 15. Bb3 {[%emt 0:00:06]} Nc5 {[%emt 0:00:24]} 16. Be3 {[%emt 0:03:45]} Qe7 {[%emt 0:03:52]} 17. Qe2 {[%emt 0:11:58]} Rad8 {[%emt 0:01:10]} 18. Rfd1 {[%emt 0:01:35]} h5 {[%emt 0:05:07]} 19. Bxc5 {[%emt 0:06:54]} Qxc5 {[%emt 0:01:08]} 20. Rxd8 {[%emt 0:04:02]} Rxd8 {[%emt 0:00:04]} 21. Rd1 {[%emt 0:00:15]} Qe7 {[%emt 0:01:14]} 22. Nf1 {[%emt 0:03:00]} Bh6 {[%emt 0:00:53]} 23. Nh2 {[%emt 0:00:24]} Rxd1+ {[%emt 0:01:49]} 24. Qxd1 {[%emt 0:00:13]} Qd7 {[%emt 0:00:16]} 25. Qe2 {[%emt 0:08:19]} Kg7 {[%emt 0:06:10]} 26. Nf3 {[%emt 0:00:14]} Qd6 {[%emt 0:01:36]} 27. g3 {[%emt 0:02:21]} Nd7 {[%emt 0:02:20]} 28. Kg2 {[%emt 0:05:21]} b5 {[%emt 0:01:44]} 29. h4 {[%emt 0:00:52]} Nc5 {[%emt 0:01:49]} 30. Bc2 {[%emt 0:01:37]} a5 {[%emt 0:02:11]} 31. b4 {[%emt 0:04:53]} axb4 {[%emt 0:01:10]} 32. cxb4 {[%emt 0:00:04]} Nd7 {[%emt 0:00:34]} 33. a3 {[%emt 0:01:55]} Nb6 {[%emt 0:14:17]} 34. Bb3 {[%emt 0:00:27]} Bc1 {[%emt 0:01:21]} 35. Qa2 {[%emt 0:01:27]} f6 {[%emt 0:04:46]} 36. Bg8 {[%emt 0:03:27]} Qf8 {[%emt 0:00:31]} 37. Bb3 {[%emt 0:00:06]} Qd6 {[%emt 0:01:26]} 38. Bg8 {[%emt 0:00:29]} Qf8 {[%emt 0:00:31]} 39. Bb3 {[%emt 0:00:12]} Qd6 {[%emt 0:00:29]} 1/2-1/2

[Event "Orbis-2 IM 2019"]
[Site "Paracin"]
[Date "2019.07.14"]
[Round "2.3"]
[White "Abramovic, Bosko"]
[Black "Patil, Mitali"]
[Result "1-0"]
[ECO "D02"]
[WhiteElo "2373"]
[BlackElo "2009"]
[Annotator "ChessBase"]
[PlyCount "83"]
[EventDate "2019.07.13"]
[EventType "tourn"]
[EventCountry "SRB"]
[SourceTitle "playchess.com"]
[Source "ChessBase"]
[SourceQuality "1"]
[TimeControl "40/5400+30:1800+30"]

1. Nf3 {[%emt 0:00:00]} d5 {[%emt 0:00:00]} 2. d4 {[%emt 0:00:15]} Nf6 {[%emt 0:00:00]} 3. g3 {[%emt 0:00:44]} e6 {[%emt 0:00:00]} 4. Bg2 {[%emt 0:00:09]} Be7 {[%emt 0:00:00]} 5. O-O {[%emt 0:00:09]} Nbd7 {[%emt 0:00:04]} 6. Nbd2 {[%emt 0:02:38]} O-O {[%emt 0:00:10]} 7. Re1 {[%emt 0:04:02]} b6 {[%emt 0:02:42]} 8. e4 {[%emt 0:01:01]} c6 {[%emt 0:01:59]} 9. c3 {[%emt 0:00:26]} Bb7 {[%emt 0:01:16]} 10. e5 {[%emt 0:00:23]} Ne8 {[%emt 0:00:28]} 11. h4 {[%emt 0:00:14]} c5 {[%emt 0:00:29]} 12. Nf1 {[%emt 0:00:20]} b5 {[%emt 0:01:13]} 13. h5 {[%emt 0:00:59]} h6 {[%emt 0:02:42]} 14. N1h2 {[%emt 0:00:13]} Nc7 {[%emt 0:07:53]} 15. Bf4 {[%emt 0:04:18]} Re8 {[%emt 0:06:09]} 16. Ng4 {[%emt 0:05:13]} Bf8 {[%emt 0:09:26]} 17. Qd2 {[%emt 0:03:43]} a5 {[%emt 0:09:30]} 18. Bf1 {[%emt 0:01:40]} c4 {[%emt 0:04:17]} 19. Ngh2 {[%emt 0:01:06]} Be7 {[%emt 0:05:43]} 20. g4 {[%emt 0:00:22]} Nf8 {[%emt 0:00:48]} 21. g5 {[%emt 0:00:21]} hxg5 {[%emt 0:03:19]} 22. Nxg5 {[%emt 0:01:18]} Nh7 {[%emt 0:08:51]} 23. Nxh7 {[%emt 0:03:58]} Kxh7 {[%emt 0:00:01]} 24. Be2 {[%emt 0:00:16]} Rh8 {[%emt 0:01:54]} 25. Kh1 {[%emt 0:01:53]} Kg8 {[%emt 0:05:18]} 26. Rg1 {[%emt 0:00:07]} Kf8 {[%emt 0:03:14]} 27. Rg2 {[%emt 0:01:48]} Ne8 {[%emt 0:00:45]} 28. Rag1 {[%emt 0:00:17]} f6 {[%emt 0:07:19]} 29. h6 {[%emt 0:03:41]} g5 {[%emt 0:00:01]} 30. exf6 {[%emt 0:00:35]} Bxf6 {[%emt 0:00:21]} 31. Bxg5 {[%emt 0:00:51]} Bc6 {[%emt 0:11:43]} 32. Bxf6 {[%emt 0:06:56]} Qxf6 {[%emt 0:01:31]} 33. Rg6 {[%emt 0:00:10]} Qf5 {[%emt 0:03:31]} 34. R1g5 {[%emt 0:02:15]} Qxf2 {[%emt 0:00:42]} 35. Ng4 {[%emt 0:06:40]} Qg3 {[%emt 0:01:13]} 36. Ne5 {[%emt 0:00:16]} Qh4+ {[%emt 0:01:49]} 37. Kg1 {[%emt 0:00:59]} Nd6 {[%emt 0:01:15]} 38. Rg4 {[%emt 0:01:02]} Qh3 {[%emt 0:00:27]} 39. Qf4+ {[%emt 0:01:05]} Ke8 {[%emt 0:00:07]} 40. Rg8+ {[%emt 0:00:00]} Rxg8 {[%emt 0:00:00]} 41. Rxg8+ {[%emt 0:01:00]} Ke7 {[%emt 0:00:18]} 42. Qg5# {[%emt 0:00:13]} 1-0

[Event "Orbis-2 IM 2019"]
[Site "Paracin"]
[Date "2019.07.14"]
[Round "2.4"]
[White "Munshi, Aditya"]
[Black "Pikula, Dejan"]
[Result "0-1"]
[ECO "B00"]
[WhiteElo "2125"]
[BlackElo "2447"]
[Annotator "NA"]
[PlyCount "156"]
[EventDate "2019.07.13"]
[EventType "tourn"]
[EventCountry "SRB"]
[SourceTitle "playchess.com"]
[Source "ChessBase"]
[SourceQuality "1"]
[TimeControl "40/5400+30:1800+30"]

1. e4 {[%emt 0:01:49]} d6 {[%emt 0:00:00]} 2. d4 g6 3. Bc4 Bg7 4. Nf3 e6 5. Bb3 Ne7 6. O-O b6 {B06: Modern Defence} 7. Re1 h6 8. c3 Nd7 9. Nbd2 Bb7 10. Nf1 a6 11. Ng3 c6 $146 ({Predecessor:} 11... Nf6 12. h3 Qc8 13. Bc2 Bc6 {½-½ (61) Fressinet,L (2712)-Shoker,S (2484) Montpellier 2015}) 12. Be3 Qc7 13. a4 c5 14. h4 c4 15. Bc2 d5 16. e5 O-O-O 17. b3 Kb8 18. Bc1 cxb3 19. Bxb3 Nc6 20. Ba2 Na5 21. Re3 Bf8 22. Nd2 Be7 23. h5 g5 24. Bb2 Ka7 25. Qe2 Rc8 26. Bb1 Nb8 27. Bd3 Qd7 28. Bc2 Rc7 29. Qf3 Rf8 30. Qe2 Rfc8 31. Qd3 Bf8 32. Bb1 Nbc6 33. Qe2 Nd8 34. Qd3 Nc4 35. Nxc4 Rxc4 36. Bc2 R4c7 37. Bb3 Nc6 38. Ne2 Na5 39. Nc1 Qe8 40. Rh3 Be7 41. Qd1 Nxb3 42. Nxb3 a5 43. Nd2 Ba6 44. Qg4 Rc6 45. Re3 R8c7 46. Rae1 Bc8 47. Qe2 Bd7 48. Ba1 $17 (48. Ra1 $11 {keeps the balance.}) 48... Rc8 49. Qd3 R6c7 50. Qh7 Bf8 51. Rf1 Bxa4 52. Qh8 Bc2 53. Qf6 Bf5 54. c4 dxc4 55. d5 Be7 56. Qxh6 exd5 57. Bd4 Rc6 58. Qg7 Qf8 59. Qxf8 Rxf8 60. f3 Ka6 61. g4 Bd3 62. Rc1 Rfc8 63. h6 Bh7 64. Nb1 Bxb1 65. Rxb1 Rxh6 66. e6 Rxe6 67. Rxe6 fxe6 68. Rxb6+ Ka7 69. Rb5+ Ka8 70. Rxa5+ Kb8 71. Be5+ Kb7 72. Bd4 Kc6 73. Ra6+ Kd7 74. Ra7+ Rc7 75. Ra1 Bd6 76. Re1 c3 77. Rc1 c2 78. Kf1 Bf4 0-1

[Event "Orbis-2 IM 2019"]
[Site "Paracin"]
[Date "2019.07.14"]
[Round "2.5"]
[White "Liu, Zhaoqi"]
[Black "Manish Anto Cristiano F"]
[Result "1/2-1/2"]
[ECO "A36"]
[WhiteElo "2386"]
[BlackElo "2208"]
[Annotator "NA"]
[PlyCount "250"]
[EventDate "2019.07.13"]
[EventType "tourn"]
[EventCountry "SRB"]
[SourceTitle "playchess.com"]
[Source "ChessBase"]
[SourceQuality "1"]
[TimeControl "40/5400+30:1800+30"]

1. c4 {[%emt 0:00:00]} c5 {[%emt 0:00:00]} 2. Nc3 {[%emt 0:00:00]} Nc6 {[%emt 0:00:26]} 3. g3 {[%emt 0:00:00]} g6 {[%emt 0:00:39]} 4. Bg2 {[%emt 0:00:00]} Bg7 {[%emt 0:00:18]} 5. a3 {[%emt 0:00:00]} e6 {[%emt 0:00:35]} 6. Rb1 {[%emt 0:00:01]} a5 {[%emt 0:03:41]} 7. e4 {[%emt 0:00:14]} Nge7 {[%emt 0:02:30]} 8. Nge2 {[%emt 0:00:05]} O-O {[%emt 0:02:14]} 9. d3 {[%emt 0:00:10]} d6 {[%emt 0:03:43]} 10. O-O {[%emt 0:00:05]} Nd4 {[%emt 0:05:17]} 11. Nxd4 {[%emt 0:10:41]} cxd4 {[%emt 0:00:37]} 12. Ne2 {[%emt 0:04:56]} a4 {[%emt 0:03:38]} 13. b4 {[%emt 0:00:25]} axb3 $1 {[%emt 0:00:23]} 14. Qxb3 {[%emt 0:00:05] A36: Symmetrical English vs ...g6: 4 Bg2 Bg7} Kh8 $146 {[%emt 0:11:59]} ({Predecessor:} 14... Nc6 15. Bd2 e5 16. f4 f5 17. Ra1 Kh8 18. Rfb1 Qc7 19. Nc1 {½-½ (19) Nake,M (2190)-Mertens,F (2132) Germany 2015}) 15. Bg5 {[%emt 0:01:59]} h6 {[%emt 0:00:27]} 16. Bd2 {[%emt 0:00:55]} Bd7 {[%emt 0:01:16]} 17. Qxb7 {[%emt 0:07:04]} Rxa3 {[%emt 0:02:17]} 18. Qb2 {[%emt 0:02:12]} Rxd3 {[%emt 0:16:38]} 19. Nf4 {[%emt 0:00:48]} Rxd2 {[%emt 0:02:33]} 20. Qxd2 {[%emt 0:00:08]} Nc6 {[%emt 0:02:12]} 21. Nd3 {[%emt 0:04:58]} Kh7 {[%emt 0:01:45]} 22. c5 {[%emt 0:01:42]} Qe7 {[%emt 0:05:14]} 23. Qc2 {[%emt 0:04:40]} Rc8 {[%emt 0:04:32]} 24. f4 {[%emt 0:04:17]} e5 {[%emt 0:04:10]} 25. cxd6 {[%emt 0:06:52]} Qxd6 {[%emt 0:00:18]} 26. Qc5 {[%emt 0:00:10]} Qxc5 {[%emt 0:04:44]} 27. Nxc5 {[%emt 0:00:05]} Bg4 {[%emt 0:00:50]} 28. Bf3 {[%emt 0:01:24]} Bxf3 {[%emt 0:05:12]} 29. Rxf3 {[%emt 0:00:07]} f5 {[%emt 0:03:00]} 30. Re1 {[%emt 0:01:47]} exf4 {[%emt 0:02:28]} 31. gxf4 {[%emt 0:00:07]} Nb4 {[%emt 0:05:19]} 32. Ne6 {[%emt 0:00:27]} fxe4 {[%emt 0:01:12]} 33. Rxe4 {[%emt 0:00:19]} Bf6 {[%emt 0:00:07]} 34. Ra3 {[%emt 0:04:31]} Nd5 {[%emt 0:02:54]} 35. Ra7+ {[%emt 0:02:59]} Kg8 {[%emt 0:00:11]} 36. Nc5 {[%emt 0:09:27]} Bg7 {[%emt 0:03:54]} 37. Nd3 {[%emt 0:01:12]} Rc3 {[%emt 0:00:19]} 38. Re8+ {[%emt 0:03:02]} Kh7 {[%emt 0:00:04]} 39. Rd8 {[%emt 0:00:19]} Ne3 {[%emt 0:00:43]} 40. Rxd4 {[%emt 0:00:00]} g5 {[%emt 0:00:00]} 41. Rdd7 {[%emt 0:03:32]} Nf5 {[%emt 0:01:07]} 42. Rac7 {[%emt 0:01:34]} Rxc7 {[%emt 0:03:14]} 43. Rxc7 {[%emt 0:00:29]} Kg6 {[%emt 0:00:14]} 44. Ne5+ {[%emt 0:01:33]} Kf6 {[%emt 0:00:18]} 45. Ng4+ {[%emt 0:03:08]} Kg6 {[%emt 0:00:11]} 46. Rc6+ {[%emt 0:00:43]} Kh5 {[%emt 0:02:15]} 47. Nf6+ {[%emt 0:00:39]} Kh4 {[%emt 0:00:26]} 48. Rc5 {[%emt 0:05:16]} Bxf6 {[%emt 0:02:54]} 49. Rxf5 {[%emt 0:00:15]} Bd4+ {[%emt 0:00:06]} 50. Kg2 {[%emt 0:00:08]} Be3 {[%emt 0:00:44]} 51. fxg5 {[%emt 0:02:53]} hxg5 {[%emt 0:05:12]} 52. Rf8 {[%emt 0:00:16]} g4 {[%emt 0:00:38]} 53. Rh8+ {[%emt 0:03:18]} Kg5 {[%emt 0:00:11]} 54. Kf1 {[%emt 0:00:10]} Bf4 {[%emt 0:00:31]} 55. Kf2 {[%emt 0:01:34]} Be5 {[%emt 0:00:14]} 56. Rg8+ {[%emt 0:00:07]} Kf5 {[%emt 0:00:22]} 57. Kg2 {[%emt 0:00:23]} Bd6 {[%emt 0:01:10]} 58. Ra8 {[%emt 0:00:15]} Be5 $16 {[%emt 0:00:18]} 59. Ra5 {[%emt 0:00:09]} Ke4 {[%emt 0:00:48]} 60. Ra2 {[%emt 0:00:11]} Kf5 {[%emt 0:00:09]} 61. Kf1 {[%emt 0:00:40]} Bf4 {[%emt 0:00:20]} 62. Rg2 {[%emt 0:00:06]} Bb8 {[%emt 0:00:37]} 63. Ke2 {[%emt 0:00:47]} Bc7 {[%emt 0:01:10]} 64. Kd3 {[%emt 0:01:19]} Kf4 {[%emt 0:00:40]} 65. Rf2+ {[%emt 0:00:08]} Kg5 {[%emt 0:00:07]} 66. Rc2 {[%emt 0:00:24]} Bd6 {[%emt 0:00:43]} 67. Ke4 {[%emt 0:00:36]} Bb8 {[%emt 0:01:03]} 68. Rf2 {[%emt 0:07:34]} Kh4 {[%emt 0:00:35]} 69. Rb2 {[%emt 0:00:06]} Bc7 {[%emt 0:00:09]} 70. Kf5 {[%emt 0:00:59]} Kh3 {[%emt 0:00:12]} 71. Rb3+ {[%emt 0:00:05]} Kg2 {[%emt 0:01:16]} 72. Kxg4 {[%emt 0:01:09]} Bxh2 {[%emt 0:00:09]} 73. Rb1 {[%emt 0:00:50]} Bg1 {[%emt 0:00:10]} 74. Rb2+ {[%emt 0:00:06]} Kh1 {[%emt 0:00:12]} 75. Kg3 {[%emt 0:00:14]} Bc5 {[%emt 0:00:49]} 76. Rh2+ {[%emt 0:00:20]} Kg1 {[%emt 0:00:13]} 77. Rh5 {[%emt 0:00:08]} Bd6+ {[%emt 0:00:20]} 78. Kf3 {[%emt 0:00:01]} Bh2 {[%emt 0:00:15]} 79. Kg4 {[%emt 0:00:45]} Kg2 {[%emt 0:00:05]} 80. Ra5 {[%emt 0:00:07]} Bg1 {[%emt 0:00:11]} 81. Ra2+ {[%emt 0:00:12]} Kh1 {[%emt 0:00:06]} 82. Kg3 {[%emt 0:00:07]} Bb6 {[%emt 0:00:11]} 83. Rh2+ {[%emt 0:00:06]} Kg1 {[%emt 0:00:08]} 84. Rh7 {[%emt 0:00:04]} Bc5 {[%emt 0:00:26]} 85. Kf3 {[%emt 0:00:16]} Bd6 {[%emt 0:01:51]} 86. Rd7 {[%emt 0:00:07]} Bb8 {[%emt 0:00:10]} 87. Rd1+ {[%emt 0:01:09]} Kh2 {[%emt 0:00:08]} 88. Kf2 {[%emt 0:00:03]} Ba7+ {[%emt 0:00:10]} 89. Kf1 {[%emt 0:00:04]} Kh1 {[%emt 0:00:41]} 90. Rd7 {[%emt 0:01:15]} Bg1 {[%emt 0:00:10]} 91. Rg7 {[%emt 0:00:09]} Bh2 {[%emt 0:00:05]} 92. Kf2 {[%emt 0:00:01]} Bd6 {[%emt 0:00:14]} 93. Rg1+ {[%emt 0:00:06]} Kh2 {[%emt 0:00:07]} 94. Rc1 {[%emt 0:00:02]} Bg3+ {[%emt 0:00:26]} 95. Kf3 {[%emt 0:00:11]} Bb8 {[%emt 0:00:05]} 96. Rc8 {[%emt 0:00:33]} Bd6 {[%emt 0:00:49]} 97. Rg8 {[%emt 0:00:55]} Kh1 {[%emt 0:00:10]} 98. Kf2 {[%emt 0:00:10]} Bc5+ {[%emt 0:00:00]} 99. Kg3 {[%emt 0:00:00]} Bd6+ {[%emt 0:00:00]} 100. Kh3 {[%emt 0:00:00]} Bh2 {[%emt 0:00:00]} 101. Ra8 {[%emt 0:00:00]} Bg1 {[%emt 0:00:04]} 102. Kg3 {[%emt 0:00:04]} Bh2+ {[%emt 0:00:11]} 103. Kf3 {[%emt 0:00:01]} Bg1 {[%emt 0:00:08]} 104. Ke2 {[%emt 0:00:03]} Kg2 {[%emt 0:00:14]} 105. Rh8 {[%emt 0:00:05]} Bh2 {[%emt 0:00:06]} 106. Rg8+ {[%emt 0:00:07]} Kh1 {[%emt 0:00:16]} 107. Kf2 {[%emt 0:00:01]} Bd6 {[%emt 0:00:43]} 108. Rg1+ {[%emt 0:00:06]} Kh2 {[%emt 0:00:07]} 109. Rc1 {[%emt 0:00:03]} Bg3+ {[%emt 0:00:44]} 110. Kf3 {[%emt 0:00:04]} Bb8 {[%emt 0:00:13]} 111. Ra1 {[%emt 0:00:20]} Bc7 {[%emt 0:00:09]} 112. Rb1 {[%emt 0:00:24]} Bd6 {[%emt 0:00:13]} 113. Rb2+ {[%emt 0:00:05]} Kh1 {[%emt 0:00:15]} 114. Rc2 {[%emt 0:00:05]} Bh2 {[%emt 0:00:05]} 115. Rg2 {[%emt 0:00:04]} Bg1 {[%emt 0:00:09]} 116. Kg3 {[%emt 0:00:04]} Ba7 117. Rh2+ {[%emt 0:00:04]} Kg1 {[%emt 0:00:42]} 118. Ra2 {[%emt 0:00:06]} Bb8+ {[%emt 0:00:12]} 119. Kh3 {[%emt 0:00:07]} Be5 {[%emt 0:00:13]} 120. Re2 {[%emt 0:00:08]} Bd4 {[%emt 0:00:24]} 121. Rd2 {[%emt 0:00:02]} Be5 {[%emt 0:00:40]} 122. Rd1+ {[%emt 0:00:06]} Kf2 {[%emt 0:00:11]} 123. Kg4 {[%emt 0:00:02]} Bh2 {[%emt 0:00:14]} 124. Rd2+ {[%emt 0:00:01]} Kg1 {[%emt 0:00:09]} 125. Rxh2 {[%emt 0:00:01]} Kxh2 {[%emt 0:00:08]} 1/2-1/2

[Event "Orbis-2 IM 2019"]
[Site "Paracin"]
[Date "2019.07.16"]
[Round "5.1"]
[White "Pikula, Dejan"]
[Black "Raghavi, N.."]
[Result "1-0"]
[ECO "D00"]
[WhiteElo "2447"]
[BlackElo "2290"]
[Annotator "ChessBase"]
[PlyCount "91"]
[EventDate "2019.07.13"]
[EventType "tourn"]
[EventCountry "SRB"]
[SourceTitle "playchess.com"]
[Source "ChessBase"]
[SourceQuality "1"]
[TimeControl "40/5400+30:1800+30"]

1. d4 {[%emt 0:00:00]} d5 {[%emt 0:00:24]} 2. Bf4 {[%emt 0:00:03]} Nf6 {[%emt 0:00:22]} 3. e3 {[%emt 0:00:14]} c5 {[%emt 0:00:30]} 4. c3 {[%emt 0:00:06]} Nc6 {[%emt 0:00:28]} 5. Nd2 {[%emt 0:00:05]} Bf5 {[%emt 0:01:03]} 6. Qb3 {[%emt 0:03:24]} Qc8 {[%emt 0:03:01]} 7. dxc5 {[%emt 0:02:52]} e5 {[%emt 0:17:47]} 8. Bg3 {[%emt 0:00:45]} Bxc5 {[%emt 0:06:22]} 9. Ngf3 {[%emt 0:01:04]} e4 {[%emt 0:13:15]} 10. Nd4 {[%emt 0:00:24]} Nxd4 {[%emt 0:03:42]} 11. cxd4 {[%emt 0:00:08]} Bb6 {[%emt 0:01:14]} 12. Bd6 {[%emt 0:03:44]} Qe6 {[%emt 0:09:10]} 13. Bb4 {[%emt 0:04:26]} a6 {[%emt 0:03:43]} 14. h3 {[%emt 0:02:41]} O-O-O {[%emt 0:04:40]} 15. Qa3 {[%emt 0:04:07]} Rd7 {[%emt 0:06:35]} 16. Nb3 {[%emt 0:00:40]} Rc7 {[%emt 0:01:09]} 17. Be2 {[%emt 0:00:49]} Rc6 {[%emt 0:02:40]} 18. Bc5 {[%emt 0:01:04]} Nd7 {[%emt 0:01:06]} 19. Rc1 {[%emt 0:01:59]} Kb8 {[%emt 0:01:36]} 20. Rc3 {[%emt 0:00:05]} Rhc8 {[%emt 0:01:53]} 21. Kd2 {[%emt 0:00:11]} Bc7 {[%emt 0:09:53]} 22. Rhc1 {[%emt 0:00:28]} Nxc5 {[%emt 0:01:29]} 23. Nxc5 {[%emt 0:01:11]} Qd6 {[%emt 0:00:46]} 24. b4 {[%emt 0:02:32]} Rb6 {[%emt 0:01:12]} 25. Qb3 {[%emt 0:01:41]} Qd8 {[%emt 0:03:06]} 26. a4 {[%emt 0:14:20]} Rd6 {[%emt 0:01:33]} 27. a5 {[%emt 0:00:56]} Rg6 {[%emt 0:02:11]} 28. g4 {[%emt 0:00:17]} Bd7 {[%emt 0:00:32]} 29. Qxd5 {[%emt 0:01:04]} Bc6 {[%emt 0:00:48]} 30. Qxd8 {[%emt 0:02:19]} Bxd8 {[%emt 0:00:12]} 31. Ke1 {[%emt 0:01:03]} Be7 {[%emt 0:01:22]} 32. Kf1 {[%emt 0:02:09]} Ka7 {[%emt 0:00:19]} 33. Bc4 {[%emt 0:03:44]} Rf8 {[%emt 0:01:10]} 34. d5 {[%emt 0:00:52]} Be8 {[%emt 0:00:12]} 35. Rb3 {[%emt 0:01:43]} f5 {[%emt 0:00:32]} 36. Ne6 {[%emt 0:02:13]} Rff6 {[%emt 0:01:13]} 37. b5 {[%emt 0:01:47]} axb5 {[%emt 0:00:32]} 38. Bxb5 {[%emt 0:00:02]} Bxb5+ {[%emt 0:00:37]} 39. Rxb5 {[%emt 0:00:06]} fxg4 {[%emt 0:00:18]} 40. hxg4 {[%emt 0:00:00]} Bd6 {[%emt 0:00:00]} 41. Rcb1 {[%emt 0:02:35]} Rf7 {[%emt 0:02:35]} 42. Nd8 {[%emt 0:01:25]} Rd7 {[%emt 0:00:08]} 43. Rxb7+ {[%emt 0:00:29]} Rxb7 {[%emt 0:00:15]} 44. Rxb7+ {[%emt 0:00:04]} Ka6 {[%emt 0:00:06]} 45. Rb6+ {[%emt 0:00:09]} Kxa5 {[%emt 0:00:09]} 46. Rxd6 {[%emt 0:00:05]} 1-0